bitfinex/quotes_ETHUSD_20260107
["timestamp","ask_amount","ask_price","bid_price","bid_amount"]
[1767829174058,0.52164675,3163.7,3163.6,0.001]
[1767829174472,3.16071159,3163.9,3163.6,0.001]
[1767829174473,3.16048087,3164.1,3163.6,1.49160987]
[1767829174664,6.32096174,3164.1,3163.6,1.49160987]
[1767829174878,7.81810894,3164.1,3163.6,0.001]
[1767829175903,1.4971472,3164.0,3163.6,0.001]
[1767829176103,1.4971472,3163.8,3162.8,1.49060987]
[1767829176998,1.4971472,3163.6,3162.8,1.49060987]
[1767829179193,3.16105579,3163.5,3162.8,1.49060987]
[1767829179772,4.65820299,3163.5,3162.8,1.49060987]
[1767829180275,7.81925878,3163.5,3162.8,1.49060987]
[1767829180476,8.48606872,3163.5,3162.8,1.49060987]
[1767829180798,5.32501293,3163.5,3162.8,1.49060987]
[1767829181095,5.32501293,3163.5,3163.1,0.001]
[1767829181698,3.82786573,3163.5,3163.1,0.001]
[1767829182984,1.4971472,3163.4,3163.1,0.001]
[1767829183594,7.8196585,3163.3,3162.6,1.49060987]
[1767829183797,4.65840285,3163.3,3162.6,1.49060987]
[1767829184168,3.16118772,3163.4,3162.6,1.49060987]
[1767829184368,3.16118772,3163.4,3162.7,1.49060987]
[1767829186711,3.1609312,3163.7,3162.8,1.49060987]
[1767829187304,6.3218624,3163.7,3162.8,1.49060987]
[1767829188010,3.1609312,3163.7,3162.8,1.49060987]
[1767829188585,6.3218624,3163.7,3162.8,1.49060987]
[1767829188787,1.4971472,3163.6,3162.7,0.46842407]
[1767829189010,1.4971472,3163.6,3162.6,1.49060987]
[1767829189620,1.4971472,3163.4,3162.6,1.49060987]
[1767829191291,3.16125565,3163.3,3162.6,1.49060987]
[1767829193101,3.16125565,3163.3,3162.9,0.001]
[1767829194831,1.4971472,3163.6,3162.9,1.49160987]
[1767829195696,3.16105579,3163.5,3162.9,1.49160987]
[1767829195915,3.16087404,3163.7,3163.0,1.49060987]
[1767829197833,3.16075605,3163.8,3163.0,1.49060987]
[1767829198007,6.3215121,3163.8,3163.0,1.49060987]
[1767829198821,7.8186593,3163.8,3163.0,1.49060987]
[1767829199033,7.8186593,3163.8,3162.9,0.001]
[1767829199034,1.52867305,3163.7,3162.9,0.001]
[1767829199340,1.4971472,3163.6,3162.9,0.001]
[1767829200225,4.65820299,3163.5,3162.9,0.001]
[1767829200732,7.81925878,3163.5,3162.9,0.001]
[1767829201700,1.4971472,3163.4,3162.9,0.001]
[1767829202129,4.65832191,3163.4,3162.9,0.001]
[1767829202332,3.16117471,3163.4,3162.9,1.44098657]
[1767829203503,3.16109016,3163.5,3162.9,1.44098657]
[1767829204233,3.16096383,3163.6,3162.9,1.44098657]
[1767829204405,6.83896784,3163.6,3162.9,1.44098657]
[1767829204600,0.002,3163.3,3162.9,1.44098657]
[1767829214346,0.002,3163.3,3162.9,0.001]
[1767829214347,1.47766699,3163.3,3162.9,0.001]
[1767829216335,4.63895236,3163.3,3162.9,0.001]
[1767829225555,0.002,3163.3,3162.9,1.44098657]
[1767829228238,0.002,3163.3,3163.1,1.43998657]
[1767829229854,1.47766699,3163.3,3162.4,1.43998657]
[1767829231554,4.63702257,3163.2,3162.4,1.43998657]
[1767829231864,1.50719284,3163.1,3162.0,1.43998657]
[1767829232058,1.47478069,3163.0,3161.8,1.46696195]
[1767829232558,1.47478069,3163.0,3161.9,1.46696195]
[1767829232726,1.47478069,3163.0,3162.0,3.16254793]
[1767829232931,0.2254817,3162.9,3162.1,1.46696195]
[1767829233125,1.70026239,3162.9,3162.1,1.46696195]
[1767829233763,4.63653609,3162.8,3162.1,1.46696195]
[1767829234234,1.47478069,3162.7,3162.1,1.46696195]
[1767829234562,6.3235108,3162.8,3162.0,1.46696195]
[1767829234756,0.65489925,3162.7,3162.0,1.46696195]
[1767829235466,2.12967994,3162.7,3162.0,1.46696195]
[1767829235966,5.29160784,3162.7,3162.0,1.46696195]
[1767829236267,1.47478069,3162.6,3161.7,5.45879151]
[1767829236433,1.47478069,3162.6,3161.7,1.46696195]
[1767829236636,1.47478069,3162.4,3161.5,4.6299857]
[1767829236867,1.47478069,3162.4,3161.0,3.16351265]
[1767829236868,1.47478069,3162.4,3161.6,1.46696195]
[1767829237962,1.47478069,3162.4,3161.7,1.46696195]
[1767829238266,3.58065034,3162.5,3161.8,1.46696195]
[1767829238450,5.05543103,3162.5,3161.8,1.46696195]
[1767829238652,1.47478069,3162.4,3161.8,1.46696195]
[1767829238836,2.2965205,3162.4,3161.8,1.46696195]
[1767829239035,1.47478069,3162.3,3161.6,1.46696195]
[1767829239439,1.47478069,3162.3,3161.7,1.46696195]
[1767829240274,3.98397189,3162.4,3161.7,1.46696195]
[1767829240441,3.98397189,3162.4,3162.1,0.001]
[1767829240640,0.4771663,3162.3,3162.1,0.001]
[1767829244068,0.002,3162.4,3162.1,1.46796195]
[1767829246480,0.002,3162.7,3162.3,1.46696195]
[1767829249059,0.002,3163.3,3162.6,1.46696195]
[1767829250487,3.16328374,3163.3,3162.6,1.46696195]
[1767829251071,0.002,3163.3,3162.6,1.46696195]
[1767829251391,0.002,3163.3,3162.7,1.46696195]
[1767829254164,0.002,3163.0,3162.7,1.46696195]
[1767829254487,0.002,3163.0,3162.6,3.62485645]
[1767829254790,0.002,3163.0,3162.7,1.46696195]
[1767829256592,0.002,3163.0,3162.7,4.6288034]
[1767829256758,0.002,3163.0,3162.9,1.46696195]
[1767829257158,0.002,3163.0,3162.8,1.97613278]
[1767829257396,0.002,3163.0,3162.9,1.46696195]
[1767829258363,0.002,3163.0,3162.9,1.46496195]
[1767829260464,0.002,3163.0,3162.7,3.16184381]
[1767829260681,0.002,3163.3,3162.8,4.99113077]
[1767829261091,0.002,3163.3,3162.8,1.82943682]
[1767829262183,0.002,3163.3,3163.0,1.46886751]
[1767829262384,0.002,3163.3,3163.0,1.46686751]
[1767829262786,0.002,3163.3,3163.0,4.62841359]
[1767829262991,1.46276577,3163.6,3163.1,0.03161455]
[1767829263198,0.002,3163.6,3163.1,1.50048206]
[1767829263517,0.002,3163.6,3163.1,2.28284915]
[1767829264226,0.002,3163.6,3163.2,1.46886751]
[1767829264517,1.46076577,3164.0,3163.3,1.46886751]
[1767829265082,3.16040332,3164.2,3163.3,1.46886751]
[1767829265313,3.98918248,3164.4,3163.5,1.46886751]
[1767829265314,1.46076577,3164.4,3163.5,1.46886751]
[1767829266317,0.002,3163.7,3163.6,4.62982338]
[1767829266511,1.46076577,3164.4,3163.7,1.46686751]
[1767829266818,0.002,3164.0,3163.7,1.46486751]
[1767829268413,1.46076577,3164.4,3163.8,4.6953203]
[1767829268609,3.16198968,3164.6,3163.9,1.53460839]
[1767829268610,1.53599544,3164.6,3163.9,1.53460839]
[1767829268808,0.002,3164.6,3163.9,1.53460839]
[1767829270716,0.002,3164.6,3164.1,1.53460839]
[1767829271994,0.002,3164.9,3164.4,1.53460839]
[1767829272693,0.002,3164.9,3164.5,3.16005688]
[1767829272917,0.002,3164.9,3164.5,2.31989344]
[1767829273723,0.002,3165.3,3164.6,1.53460839]
[1767829273924,1.53599544,3165.3,3164.6,1.53460839]
[1767829274825,4.69527629,3165.3,3164.6,1.53460839]
[1767829275010,1.53599544,3165.3,3164.6,4.6945546]
[1767829275216,1.53599544,3165.3,3164.7,1.53460839]
[1767829276105,0.002,3165.3,3164.7,1.53460839]
[1767829277124,0.002,3165.3,3164.7,4.69444072]
[1767829277329,0.002,3165.3,3164.8,1.53460839]
[1767829277823,0.002,3165.3,3164.7,3.15983233]
[1767829277824,1.53399544,3166.2,3165.2,5.28215218]
[1767829278023,1.53399544,3166.0,3165.3,0.52821522]
[1767829278223,1.53399544,3166.0,3164.8,1.53460839]
[1767829279106,1.53599544,3165.3,3164.7,6.3196895]
[1767829279301,2.36399544,3165.3,3164.7,7.85429789]
[1767829279502,0.83,3165.3,3164.8,1.53460839]
[1767829279910,0.83,3165.3,3164.8,1.53260839]
[1767829280242,0.828,3165.5,3164.8,1.53260839]
[1767829281411,0.828,3165.5,3165.0,1.53460839]
[1767829281735,0.828,3165.5,3165.0,1.53260839]
[1767829282231,0.828,3165.5,3165.0,2.00184273]
[1767829283333,0.828,3165.5,3165.0,5.16139703]
[1767829283533,0.828,3165.5,3165.0,4.69216269]
[1767829283732,0.828,3165.5,3165.0,1.53260839]
[1767829283946,0.828,3165.5,3165.0,4.6921654]
[1767829287511,0.828,3165.5,3165.0,7.88331863]
[1767829287818,0.828,3165.5,3165.1,1.53460839]
[1767829288445,1.53399544,3165.9,3165.3,1.53460839]
[1767829288617,0.828,3166.0,3165.3,1.53460839]
[1767829288942,0.828,3166.0,3165.4,1.56619997]
[1767829289515,0.828,3166.0,3165.4,4.72534472]
[1767829289719,0.828,3166.0,3165.4,1.56619997]
[1767829290640,6.31682108,3166.2,3165.5,1.53460839]
[1767829290846,1.53399544,3166.1,3165.3,1.53460839]
[1767829291050,0.002,3165.5,3165.3,1.53460839]
[1767829291354,1.53399544,3166.1,3165.3,1.53460839]
[1767829291519,4.69255513,3166.0,3165.3,1.53460839]
[1767829291720,4.69255513,3166.0,3165.3,2.00400487]
[1767829292525,1.56624746,3165.9,3165.1,1.50738704]
[1767829292921,1.56624746,3165.7,3164.6,5.28738704]
[1767829293121,0.85952585,3165.8,3164.6,5.28738704]
[1767829293122,1.56624746,3165.5,3164.6,1.50738704]
[1767829293424,1.56624746,3165.3,3164.6,1.50738704]
[1767829294024,1.56624746,3165.3,3164.6,3.1599414]
[1767829294336,1.56624746,3165.3,3164.7,0.31599414]
[1767829294541,3.15907934,3165.5,3164.7,1.82338118]
[1767829294748,1.56624746,3165.4,3164.7,1.82338118]
[1767829295320,3.15868693,3165.9,3164.8,1.50738704]
[1767829295548,3.15868693,3165.9,3165.0,1.50738704]
[1767829295732,6.31737386,3165.9,3165.1,1.50738704]
[1767829295932,7.88362132,3165.9,3165.1,1.50738704]
[1767829296342,4.72493439,3165.9,3165.1,1.50738704]
[1767829298160,1.56624746,3165.9,3165.2,1.50738704]
[1767829298357,0.828,3166.0,3165.4,1.50738704]
[1767829298678,4.72476487,3166.1,3165.4,1.50738704]
[1767829298679,7.88328228,3166.1,3165.4,1.50738704]
[1767829299254,1.56624746,3166.0,3165.4,1.50738704]
[1767829299555,1.56624746,3166.0,3165.5,0.19740701]
[1767829299762,4.72482987,3166.0,3165.5,0.19740701]
[1767829299963,1.56624746,3166.0,3165.5,0.19740701]
[1767829300258,3.16027289,3166.3,3165.5,1.70479405]
[1767829300259,4.72464464,3166.2,3165.5,1.70479405]
[1767829300562,1.56624746,3166.1,3165.5,1.70479405]
[1767829300976,1.56624746,3166.1,3165.3,0.46668305]
[1767829301262,1.56624746,3166.1,3165.2,1.50738704]
[1767829302128,3.15855969,3166.0,3165.2,1.50738704]
[1767829303232,0.002,3165.8,3165.2,1.50738704]
[1767829304476,0.002,3165.8,3165.3,1.50738704]
[1767829308539,1.56824746,3165.8,3165.1,4.66677033]
[1767829308739,0.002,3165.8,3165.3,1.50738704]
[1767829311971,0.002,3165.8,3165.4,1.50738704]
[1767829312176,0.002,3166.1,3165.6,1.50738704]
[1767829313368,0.002,3166.1,3165.7,0.03158859]
[1767829313534,0.002,3166.1,3165.7,2.00876816]
[1767829313741,0.002,3166.1,3165.8,1.50738704]
[1767829314851,0.002,3166.1,3165.7,0.46979253]
[1767829314852,0.002,3166.1,3165.6,1.50738704]
[1767829315768,0.002,3166.1,3165.7,0.03158858]
[1767829316346,0.002,3166.3,3165.7,0.03158858]
[1767829316546,0.002,3166.3,3165.7,0.50148029]
[1767829316738,0.002,3166.3,3165.7,2.00886733]
[1767829317450,1.56824746,3166.3,3165.7,0.46989171]
[1767829317651,1.56624746,3166.2,3165.6,0.001]
[1767829318045,1.56624746,3166.0,3165.6,0.001]
[1767829319354,3.15838867,3166.2,3165.6,1.50838704]
[1767829320877,7.88476832,3166.3,3165.6,1.50838704]
[1767829321678,1.56624746,3166.2,3165.6,1.50838704]
[1767829323053,3.15845993,3166.1,3165.6,1.50838704]
[1767829323281,4.63502057,3166.1,3165.6,0.001]
[1767829323650,1.47656064,3166.0,3165.6,0.001]
[1767829326080,1.47656064,3165.9,3165.6,0.001]
[1767829328684,4.63525848,3165.9,3165.6,0.001]
[1767829329059,1.47656064,3165.8,3165.6,0.001]
[1767829330072,1.47656064,3165.8,3165.0,0.001]
[1767829330284,1.47656064,3165.8,3165.1,3.15942667]
[1767829330469,1.47656064,3165.8,3165.2,0.31604267]
[1767829334457,1.47656064,3165.8,3165.2,3.47538711]
[1767829334989,1.47656064,3165.8,3165.2,0.31604267]
[1767829335291,1.47656064,3165.8,3165.2,3.47539645]
[1767829335758,1.47656064,3165.8,3165.2,1.75550322]
[1767829335965,3.15869784,3165.9,3165.2,1.75550322]
[1767829336390,1.47656064,3165.9,3165.2,1.75550322]
[1767829336688,1.47656064,3165.9,3165.2,1.43946055]
[1767829337461,0.03152585,3165.8,3165.0,1.44046055]
[1767829337666,1.47656064,3165.7,3165.0,1.44046055]
[1767829338687,1.47656064,3165.6,3165.0,1.44046055]
[1767829339588,1.47656064,3165.6,3165.0,0.001]
[1767829339770,1.47656064,3165.4,3165.0,0.001]
[1767829340285,1.47656064,3165.4,3164.5,3.16000357]
[1767829340478,1.47656064,3165.4,3164.4,1.43946055]
[1767829340797,1.47656064,3165.2,3164.2,1.43946055]
[1767829340965,1.47656064,3165.2,3164.3,3.16020736]
[1767829341166,1.47656064,3165.2,3164.4,1.43946055]
[1767829342162,1.47656064,3165.2,3164.5,1.43946055]
[1767829342470,1.47656064,3165.2,3164.5,1.47106111]
[1767829342988,1.47656064,3165.2,3164.6,1.43946055]
[1767829343292,1.47656064,3165.2,3164.5,3.1600074]
[1767829343489,1.47656064,3165.2,3164.5,4.01357771]
[1767829343667,1.47656064,3165.2,3164.5,5.45303826]
[1767829345470,4.63593628,3165.2,3164.5,2.29303086]
[1767829345790,1.47656064,3165.1,3164.5,2.29303086]
[1767829348199,1.47656064,3165.1,3164.5,1.43946055]
[1767829348609,4.63602027,3165.1,3164.3,4.59967475]
[1767829349372,1.47656064,3165.1,3164.4,3.1601505]
[1767829349573,1.47656064,3165.1,3164.4,4.59961105]
[1767829350213,1.47656064,3165.1,3164.5,3.16003874]
[1767829350704,1.47656064,3165.1,3164.4,4.59956911]
[1767829351286,1.47656064,3165.1,3164.4,5.3755597]
[1767829351687,1.47656064,3165.1,3164.7,0.001]
[1767829353903,1.48909078,3165.0,3164.7,0.001]
[1767829358910,4.64866006,3165.0,3164.7,0.001]
[1767829359413,1.52061663,3164.9,3164.7,0.001]
[1767829360009,1.48909078,3164.9,3164.7,0.001]
[1767829360386,1.48909078,3164.9,3164.2,1.47398594]
[1767829360387,1.48909078,3164.8,3164.0,1.47398594]
[1767829361785,5.47668875,3165.0,3164.0,1.47398594]
[1767829362887,5.47668875,3165.0,3164.2,1.47398594]
[1767829364811,5.47668875,3165.0,3164.3,1.47498594]
[1767829364985,6.3403045,3165.0,3164.3,1.47498594]
[1767829369013,1.48909078,3164.9,3164.3,1.47498594]
[1767829370597,4.85121372,3165.0,3164.3,1.47498594]
[1767829370794,6.3403045,3165.0,3164.3,1.47498594]
[1767829371418,1.48909078,3164.9,3164.3,0.001]
[1767829371613,1.48909078,3164.8,3164.3,0.001]
[1767829371917,5.47668875,3165.0,3164.3,1.47498594]
[1767829373417,8.63629998,3165.0,3164.3,1.47498594]
[1767829373714,1.48909078,3164.9,3164.3,1.47498594]
[1767829375523,4.64877951,3164.9,3164.3,1.47498594]
[1767829376323,4.64877951,3164.9,3164.6,0.001]
[1767829376626,0.002,3164.7,3164.6,0.001]
[1767829376797,1.49109078,3164.7,3164.6,0.001]
[1767829378520,0.002,3164.7,3164.6,0.001]
[1767829379915,0.002,3164.7,3164.3,0.001]
[1767829380927,0.002,3164.7,3164.3,1.47498594]
[1767829383135,1.46834396,3164.7,3164.3,0.001]
[1767829384926,0.03152585,3164.6,3164.3,0.001]
[1767829385135,0.828,3164.5,3163.9,1.52106193]
[1767829385431,5.45444356,3164.5,3163.8,1.52106193]
[1767829386797,0.828,3164.5,3163.9,1.52106193]
[1767829387003,0.002,3164.7,3164.5,1.52106193]
[1767829387203,0.002,3164.7,3164.5,1.48559644]
[1767829387596,0.002,3164.7,3163.7,1.52106193]
[1767829387802,0.002,3164.7,3163.9,1.52106193]
[1767829388315,0.002,3164.7,3164.0,3.1605053]
[1767829388517,0.002,3164.7,3164.1,1.52106193]
[1767829389431,0.002,3164.7,3164.3,1.52206193]
[1767829401142,0.002,3164.7,3164.3,0.001]
[1767829401439,0.002,3164.7,3164.3,1.52206193]
[1767829407062,0.002,3164.7,3164.3,0.001]
[1767829409754,0.002,3164.7,3164.3,1.52206193]
[1767829425556,0.002,3164.7,3164.3,4.68231144]
[1767829425760,5.28619588,3166.3,3164.7,1.45910959]
[1767829425937,5.56211597,3165.5,3164.7,1.45910959]
[1767829426337,1.57505389,3165.4,3164.7,1.45910959]
[1767829427464,4.73423239,3165.4,3164.7,1.45910959]
[1767829427762,4.73423239,3165.4,3164.8,1.45910959]
[1767829428356,1.57505389,3165.4,3164.8,1.45910959]
[1767829428553,4.7342129,3165.4,3164.8,1.45910959]
[1767829430867,1.57505389,3165.3,3164.7,0.46190355]
[1767829431062,1.57505389,3165.3,3164.4,1.45910959]
[1767829431361,1.57505389,3165.3,3164.4,4.61925226]
[1767829432134,1.57505389,3165.3,3164.5,4.61915965]
[1767829432340,1.57505389,3165.3,3164.6,3.15993839]
[1767829432540,1.57505389,3165.3,3164.7,0.4619048]
[1767829433270,4.73432527,3165.3,3164.7,0.4619048]
[1767829434570,4.73431238,3165.3,3164.7,0.4619048]
[1767829434862,1.57505389,3165.3,3164.7,0.4619048]
[1767829435168,1.57505389,3165.3,3164.7,1.92101439]
[1767829435366,0.002,3165.6,3164.9,1.45910959]
[1767829435842,0.002,3165.6,3165.0,0.001]
[1767829436042,0.002,3165.6,3165.0,1.46010959]
[1767829436449,1.57705389,3165.6,3165.0,0.001]
[1767829436657,1.57505389,3165.5,3165.0,0.001]
[1767829438264,1.57505389,3165.4,3165.0,0.001]
[1767829441468,1.57505389,3165.3,3165.0,0.001]
[1767829443179,1.46993491,3165.2,3165.0,0.001]
[1767829443353,3.15925912,3165.3,3165.0,0.001]
[1767829443548,1.46993491,3165.4,3165.0,0.001]
[1767829443761,4.62914587,3165.4,3165.0,0.001]
[1767829445258,1.46993491,3165.3,3165.0,0.001]
[1767829447479,1.46993491,3165.2,3165.0,0.001]
[1767829447777,1.46993491,3165.2,3165.1,0.001]
[1767829450183,4.62929292,3165.2,3165.1,0.001]
[1767829450560,1.46993491,3165.2,3165.1,0.001]
[1767829451271,4.62929292,3165.2,3165.1,0.001]
[1767829452389,1.46993491,3165.2,3165.1,0.001]
[1767829454092,3.15930572,3165.3,3165.1,0.001]
[1767829455582,1.50146076,3165.2,3164.3,0.001]
[1767829455776,1.50146076,3165.2,3164.3,1.5063047]
[1767829456090,1.46993491,3165.2,3164.3,1.5063047]
[1767829456580,4.62939274,3165.1,3164.3,1.5063047]
[1767829456760,8.30377812,3165.1,3164.3,1.5063047]
[1767829457383,1.46993491,3165.0,3164.3,1.5063047]
[1767829458695,3.15965749,3164.9,3164.3,1.5063047]
[1767829459470,1.46993491,3165.0,3164.6,0.001]
[1767829459471,4.62954608,3165.0,3164.6,0.001]
[1767829462998,1.46993491,3164.9,3164.3,0.001]
[1767829463292,1.46993491,3164.8,3164.3,0.001]
[1767829465270,4.62979208,3164.7,3164.3,0.001]
[1767829468003,7.78964925,3164.7,3164.3,0.001]
[1767829469087,1.46993491,3164.6,3164.3,0.001]
[1767829469287,1.98486246,3164.6,3164.3,0.001]
[1767829472084,5.14482614,3164.6,3164.3,0.001]
[1767829472998,1.98486246,3164.6,3164.3,0.001]
[1767829473177,5.14483798,3164.6,3164.3,0.001]
[1767829473894,3.67490307,3164.6,3164.3,0.001]
[1767829474100,0.36769031,3164.5,3164.3,0.001]
[1767829474486,3.52774964,3164.5,3164.3,0.001]
[1767829479809,0.36769031,3164.5,3164.3,0.001]
[1767829480604,0.002,3164.7,3164.3,1.56059686]
[1767829483507,0.001,3165.0,3164.7,1.55959686]
[1767829483686,0.001,3165.0,3164.3,3.16119095]
[1767829483687,3.9870586,3165.5,3164.8,1.55959686]
[1767829484619,0.828,3165.5,3165.0,1.55959686]
[1767829484786,2.30679755,3165.6,3165.0,1.55959686]
[1767829484980,5.46576435,3165.6,3165.0,1.55959686]
[1767829485287,2.30679755,3165.6,3165.0,1.55959686]
[1767829486403,5.46581395,3165.6,3165.0,1.55959686]
[1767829486721,2.30679755,3165.6,3165.0,1.55959686]
[1767829487591,5.46579332,3165.6,3165.0,1.55959686]
[1767829487994,2.30679755,3165.6,3165.0,1.55959686]
[1767829489304,5.46577174,3165.6,3165.0,1.55959686]
[1767829489907,5.46577174,3165.6,3165.0,1.55759686]
[1767829490193,6.32823526,3165.6,3165.0,1.55759686]
[1767829492521,5.46577174,3165.6,3165.0,1.55759686]
[1767829492735,1.47679755,3165.5,3164.8,4.7192946]
[1767829493040,1.47679755,3165.5,3164.9,1.55959686]
[1767829493796,3.98896432,3165.6,3164.9,1.55959686]
[1767829493797,0.83,3165.6,3164.9,4.71922868]
[1767829494032,0.83,3165.6,3165.0,1.55959686]
[1767829494403,0.83,3165.6,3165.0,5.19101545]
[1767829494629,0.002,3165.6,3165.1,1.55959686]
[1767829496194,2.30479755,3165.7,3165.1,1.55959686]
[1767829496195,3.15880723,3165.8,3165.1,1.55959686]
[1767829496399,3.98680723,3165.8,3165.1,1.55959686]
[1767829498827,5.46360478,3165.8,3165.1,1.55959686]
[1767829499236,5.46360478,3165.8,3165.1,2.03151714]
[1767829500439,1.47679755,3165.7,3165.1,0.47192028]
[1767829500641,1.47679755,3165.7,3164.9,1.55959686]
[1767829502639,4.63575566,3165.7,3164.9,1.55959686]
[1767829502948,4.63575566,3165.7,3165.0,1.43055164]
[1767829505149,1.47679755,3165.7,3165.0,1.43055164]
[1767829505300,3.98681293,3165.8,3165.0,1.43055164]
[1767829505506,3.98681293,3165.8,3165.0,4.59009993]
[1767829505702,0.828,3165.8,3165.1,1.43055164]
[1767829507739,0.826,3165.8,3165.3,1.43055164]
[1767829508042,0.002,3165.7,3165.3,1.43055164]
[1767829519629,0.002,3165.7,3165.3,1.43155164]
[1767829522241,0.002,3165.7,3165.3,4.59079893]
[1767829522544,0.002,3165.7,3165.3,5.36582413]
[1767829522761,0.002,3165.7,3165.3,2.20657684]
[1767829522921,0.002,3165.7,3165.3,1.43155164]
[1767829525354,0.002,3165.7,3165.3,0.001]
[1767829525558,1.49337492,3165.7,3165.3,0.001]
[1767829525745,1.49137492,3165.4,3164.3,1.43155164]
[1767829525946,1.49137492,3165.1,3164.3,0.001]
[1767829526255,1.49137492,3164.9,3164.3,0.001]
[1767829526442,1.49137492,3164.7,3164.3,0.001]
[1767829530227,1.49137492,3164.6,3164.3,0.001]
[1767829532829,1.50019803,3164.5,3164.3,0.001]
[1767829535052,1.50019803,3164.4,3163.0,4.57897882]
[1767829535364,0.828,3164.3,3163.8,1.4174732]
[1767829535535,0.828,3164.3,3163.8,4.57822456]
[1767829535731,0.828,3164.3,3163.6,3.16094566]
[1767829535732,1.50019803,3164.8,3163.9,1.4174732]
[1767829535935,1.50019803,3165.3,3164.0,1.44907876]
[1767829536154,0.828,3165.4,3164.0,1.44907876]
[1767829536155,1.50019803,3165.1,3164.0,1.4174732]
[1767829536458,4.65975005,3165.1,3164.2,1.4174732]
[1767829538035,1.50019803,3165.0,3164.2,1.4174732]
[1767829539067,1.50019803,3165.0,3164.3,1.4174732]
[1767829539363,4.65977698,3165.0,3164.3,1.4174732]
[1767829541266,7.81935593,3165.0,3164.3,1.4174732]
[1767829541576,1.50019803,3164.8,3164.1,1.4174732]
[1767829541861,1.50019803,3164.8,3163.8,3.16072341]
[1767829542080,1.50019803,3164.8,3163.9,3.16064024]
[1767829543079,1.50019803,3164.6,3163.9,3.16064024]
[1767829543249,1.50019803,3164.6,3163.9,4.57811344]
[1767829543438,1.50019803,3164.6,3163.9,5.03592478]
[1767829545766,1.50019803,3164.6,3163.9,5.03592906]
[1767829546138,4.66016162,3164.6,3163.9,1.87528454]
[1767829546367,4.66016162,3164.6,3163.9,1.4174732]
[1767829547441,1.50019803,3164.6,3163.9,4.5781201]
[1767829548569,4.66015841,3164.6,3163.9,1.4174732]
[1767829549974,4.66015841,3164.6,3163.9,4.57812593]
[1767829550470,4.66015841,3164.6,3163.9,1.4174732]
[1767829550668,1.50019803,3164.5,3163.9,1.4174732]
[1767829550838,1.50019803,3164.5,3163.7,4.57831813]
[1767829551043,1.50019803,3164.5,3163.7,1.4174732]
[1767829551369,1.50019803,3164.3,3163.5,1.4174732]
[1767829551545,1.50019803,3164.3,3163.3,3.1612243]
[1767829551546,1.50019803,3164.3,3163.3,1.4174732]
[1767829551740,1.50019803,3164.1,3163.3,1.4174732]
[1767829551986,1.50019803,3163.9,3163.3,1.4174732]
[1767829552143,1.50019803,3163.9,3163.2,3.1612961]
[1767829553072,1.50019803,3163.9,3163.3,4.57871978]
[1767829554559,4.66070316,3164.1,3163.3,4.57871978]
[1767829554773,1.50019803,3164.0,3163.3,4.57871978]
[1767829554979,0.828,3163.9,3163.3,1.4174732]
[1767829555276,2.32819803,3163.9,3163.3,1.4174732]
[1767829555480,1.50019803,3163.8,3163.1,1.4174732]
[1767829555679,1.73301783,3163.7,3163.1,1.4174732]
[1767829555973,1.50019803,3163.7,3163.1,4.57883548]
[1767829556189,2.32819803,3163.9,3163.2,1.4174732]
[1767829556959,0.828,3164.0,3163.3,1.4174732]
[1767829557158,4.53757726,3164.1,3163.3,1.4174732]
[1767829557364,3.98846147,3164.1,3163.3,1.4174732]
[1767829557554,3.98846228,3164.1,3163.3,1.4174732]
[1767829559151,5.48866031,3164.1,3163.3,1.4174732]
[1767829559352,5.48866031,3164.1,3163.4,1.4174732]
[1767829559565,6.35376294,3164.1,3163.4,1.4174732]
[1767829561356,1.50019803,3164.0,3163.4,1.4174732]
[1767829561556,1.50019803,3163.9,3163.1,1.4174732]
[1767829561758,1.50019803,3163.9,3163.1,4.57889781]
[1767829562157,1.50019803,3163.9,3163.2,1.43538777]
[1767829562383,6.30853583,3164.1,3163.4,1.43538777]
[1767829562580,0.43380348,3164.0,3163.4,1.43538777]
[1767829562867,0.828,3164.1,3163.5,1.43538777]
[1767829563065,0.002,3164.6,3164.0,1.43538777]
[1767829563263,0.83,3164.6,3164.0,1.43538777]
[1767829566489,3.99005409,3164.6,3164.0,1.43538777]
[1767829567160,7.15010818,3164.6,3164.0,1.43538777]
[1767829567361,8.6050791,3164.6,3164.0,1.43538777]
[1767829567561,9.46578701,3164.6,3164.0,1.43538777]
[1767829568087,0.002,3164.3,3164.0,1.43538777]
[1767829568666,0.002,3164.3,3163.7,1.43538777]
[1767829570213,0.002,3164.3,3163.8,1.43538777]
[1767829575074,1.49149677,3164.3,3163.4,1.43538777]
[1767829575272,4.6153274,3164.2,3163.5,0.45965815]
[1767829575669,4.6153274,3164.2,3163.5,1.89504592]
[1767829575912,4.6153274,3164.2,3163.5,1.43538777]
[1767829576089,1.45497092,3164.1,3163.5,1.43538777]
[1767829577181,1.45497092,3164.1,3163.3,3.16121727]
[1767829577182,4.61552717,3164.0,3163.3,1.43538777]
[1767829579618,4.61552717,3164.0,3163.8,0.001]
[1767829580318,4.61552717,3164.0,3163.3,1.43538777]
[1767829580524,0.86039888,3163.9,3163.3,1.43538777]
[1767829581620,4.02106702,3163.9,3163.3,1.43538777]
[1767829581929,0.86039888,3163.9,3163.3,1.43538777]
[1767829583025,4.02107837,3163.9,3163.3,1.43538777]
[1767829583228,0.86039888,3163.9,3163.3,1.43538777]
[1767829583414,4.02107804,3163.9,3163.3,1.43538777]
[1767829583613,0.86039888,3163.9,3163.3,1.43538777]
[1767829583814,4.61554868,3164.0,3163.3,1.43538777]
[1767829584434,1.45497092,3164.0,3163.3,1.43538777]
[1767829584733,1.45497092,3164.0,3163.3,4.59662544]
[1767829585027,1.45497092,3164.0,3163.4,1.43538777]
[1767829586537,4.6155504,3164.0,3163.4,1.43538777]
[1767829586727,5.15990544,3164.0,3163.4,1.43538777]
[1767829586927,1.48949677,3163.9,3162.8,1.43538777]
[1767829587101,1.45497092,3163.9,3162.9,1.43538777]
[1767829587301,0.828,3163.8,3162.9,1.43538777]
[1767829587503,0.828,3163.8,3163.0,1.43538777]
[1767829587743,2.28297092,3163.8,3163.0,1.43538777]
[1767829588447,1.45497092,3163.8,3163.0,1.43538777]
[1767829588644,4.61577858,3163.8,3163.0,1.43538777]
[1767829588945,0.829,3163.7,3163.0,1.43538777]
[1767829589105,0.829,3163.7,3162.9,0.45971932]
[1767829589106,0.829,3163.7,3163.2,1.43538777]
[1767829591045,3.16095587,3163.6,3163.2,1.43538777]
[1767829591348,1.45497092,3163.5,3163.2,0.001]